[Event "Titled Tuesday Blitz June 14 Late 2022"]
[White "Simonovic, Miroslav"]
[Black "Mangialardo, Tiago Carvalho"]
[WhiteFideId "919152"]
[BlackFideId "2130718"]
[WhiteElo "2043"]
[BlackElo "2080"]
[Result "0-1"]
[Round "11"]
[TimeControl "180+1"]
[Date "2022.06.15"]
[WhiteClock "0:00:07"]
[BlackClock "0:00:03"]

1. d4 {[%clk 0:03:00]}  d5 {[%clk 0:02:59]} 2. Bg5 {[%clk 0:03:01]}  Nd7 {[%clk 0:02:53]} 3. e3 {[%clk 0:03:00]}  Ngf6 {[%clk 0:02:53]} 4. c4 {[%clk 0:03:00]}  e6 {[%clk 0:02:53]} 5. cxd5 {[%clk 0:02:57]}  exd5 {[%clk 0:02:53]} 6. Nc3 {[%clk 0:02:57]}  Be7 {[%clk 0:02:53]} 7. Bd3 {[%clk 0:02:56]}  O-O {[%clk 0:02:53]} 8. Qc2 {[%clk 0:02:55]}  h6 {[%clk 0:02:53]} 9. Bh4 {[%clk 0:02:55]}  c6 {[%clk 0:02:54]} 10. f4 {[%clk 0:02:48]}  Re8 {[%clk 0:02:52]} 11. Nf3 {[%clk 0:02:29]}  Ne4 {[%clk 0:02:41]} 12. Bxe7 {[%clk 0:02:25]}  Qxe7 {[%clk 0:02:41]} 13. Bxe4 {[%clk 0:02:19]}  dxe4 {[%clk 0:02:42]} 14. Ne5 {[%clk 0:02:15]}  f6 {[%clk 0:02:29]} 15. Nc4 {[%clk 0:01:38]}  Nb6 {[%clk 0:01:53]} 16. Nd2 {[%clk 0:01:36]}  Bf5 {[%clk 0:01:41]} 17. O-O {[%clk 0:01:35]}  Qe6 {[%clk 0:01:33]} 18. h3 {[%clk 0:01:26]}  h5 {[%clk 0:01:28]} 19. b3 {[%clk 0:01:20]}  Nd5 {[%clk 0:01:27]} 20. Nxd5 {[%clk 0:01:12]}  Qxd5 {[%clk 0:01:11]} 21. Rac1 {[%clk 0:01:10]}  Rad8 {[%clk 0:01:10]} 22. Qc5 {[%clk 0:01:05]}  a6 {[%clk 0:00:41]} 23. Rc3 {[%clk 0:00:57]}  Rd7 {[%clk 0:00:38]} 24. Rfc1 {[%clk 0:00:56]}  Red8 {[%clk 0:00:36]} 25. a4 {[%clk 0:00:49]}  g5 {[%clk 0:00:19]} 26. fxg5 {[%clk 0:00:45]}  fxg5 {[%clk 0:00:20]} 27. b4 {[%clk 0:00:43]}  g4 {[%clk 0:00:18]} 28. h4 {[%clk 0:00:35]}  g3 {[%clk 0:00:18]} 29. Nf1 {[%clk 0:00:35]}  Rg7 {[%clk 0:00:14]} 30. Qxd5+ {[%clk 0:00:18]}  Rxd5 {[%clk 0:00:10]} 31. Rc5 {[%clk 0:00:18]}  Be6 {[%clk 0:00:09]} 32. b5 {[%clk 0:00:16]}  axb5 {[%clk 0:00:06]} 33. axb5 {[%clk 0:00:17]}  cxb5 {[%clk 0:00:05]} 34. Nd2 {[%clk 0:00:15]}  Rg4 {[%clk 0:00:04]} 35. Rb1 {[%clk 0:00:13]}  Rxc5 {[%clk 0:00:03]} 36. dxc5 {[%clk 0:00:14]}  Bd7 {[%clk 0:00:02]} 37. Rb4 {[%clk 0:00:12]}  Bc6 {[%clk 0:00:02]} 38. Rd4 {[%clk 0:00:13]}  Rxh4 {[%clk 0:00:02]} 39. Rd8+ {[%clk 0:00:10]}  Kf7 {[%clk 0:00:02]} 40. Rd6 {[%clk 0:00:11]}  Rg4 {[%clk 0:00:02]} 41. Nf1 {[%clk 0:00:11]}  h4 {[%clk 0:00:03]} 42. Rh6 {[%clk 0:00:10]}  Kg7 {[%clk 0:00:03]} 43. Rd6 {[%clk 0:00:10]}  Rg5 {[%clk 0:00:03]} 44. Rd4 {[%clk 0:00:07]}  Rxc5 {[%clk 0:00:04]} 45. Nd2 {[%clk 0:00:08]}  Rc1+ {[%clk 0:00:04]} 46. Nf1 {[%clk 0:00:08]}  b4 {[%clk 0:00:04]} 47. Rd2 {[%clk 0:00:08]}  Bb5 {[%clk 0:00:04]} 48. Re2 {[%clk 0:00:07]}  Bxe2 {[%clk 0:00:03]} 49. Kh1 {[%clk 0:00:07]}  Rxf1# {[%clk 0:00:03]} 0-1


[Site "https://www.chess.com"]

[Event "Titled Tuesday Blitz June 14 Late 2022"]
[White "Yuan, Qingyu"]
[Black "Peng, David Yu"]
[WhiteFideId "8609772"]
[BlackFideId "2605376"]
[WhiteElo "2359"]
[BlackElo "2166"]
[Result "1/2-1/2"]
[Round "11"]
[TimeControl "180+1"]
[Date "2022.06.14"]
[WhiteClock "0:00:18"]
[BlackClock "0:00:16"]

1. e4 {[%clk 0:03:00]}  c5 {[%clk 0:02:59]} 2. Nf3 {[%clk 0:03:01]}  e6 {[%clk 0:02:59]} 3. b3 {[%clk 0:03:01]}  Nc6 {[%clk 0:02:57]} 4. Bb2 {[%clk 0:02:53]}  Nf6 {[%clk 0:02:56]} 5. e5 {[%clk 0:02:49]}  Nd5 {[%clk 0:02:56]} 6. Nc3 {[%clk 0:02:38]}  Nxc3 {[%clk 0:02:55]} 7. dxc3 {[%clk 0:02:39]}  d5 {[%clk 0:02:53]} 8. exd6 {[%clk 0:02:37]}  Qxd6 {[%clk 0:02:52]} 9. Qe2 {[%clk 0:02:35]}  Be7 {[%clk 0:02:47]} 10. Rd1 {[%clk 0:02:33]}  Qc7 {[%clk 0:02:45]} 11. c4 {[%clk 0:02:32]}  O-O {[%clk 0:02:40]} 12. g3 {[%clk 0:02:20]}  b6 {[%clk 0:02:29]} 13. Bg2 {[%clk 0:02:13]}  Bb7 {[%clk 0:02:26]} 14. O-O {[%clk 0:01:59]}  Rfd8 {[%clk 0:02:25]} 15. h4 {[%clk 0:01:52]}  Rxd1 {[%clk 0:02:23]} 16. Rxd1 {[%clk 0:01:51]}  Rd8 {[%clk 0:02:24]} 17. Rxd8+ {[%clk 0:01:47]}  Qxd8 {[%clk 0:02:19]} 18. Ne5 {[%clk 0:01:26]}  Nxe5 {[%clk 0:02:06]} 19. Bxb7 {[%clk 0:01:21]}  Nd7 {[%clk 0:02:02]} 20. Qd1 {[%clk 0:00:57]}  Nf8 {[%clk 0:01:36]} 21. Qxd8 {[%clk 0:00:49]}  Bxd8 {[%clk 0:01:36]} 22. Be5 {[%clk 0:00:49]}  Nd7 {[%clk 0:01:36]} 23. Bd6 {[%clk 0:00:50]}  f6 {[%clk 0:01:18]} 24. Bc6 {[%clk 0:00:42]}  Ne5 {[%clk 0:01:12]} 25. Be4 {[%clk 0:00:42]}  Nd7 {[%clk 0:01:01]} 26. Bc6 {[%clk 0:00:41]}  Ne5 {[%clk 0:01:01]} 27. Be8 {[%clk 0:00:41]}  Nf7 {[%clk 0:00:51]} 28. Bb8 {[%clk 0:00:38]}  a5 {[%clk 0:00:52]} 29. Bd7 {[%clk 0:00:27]}  e5 {[%clk 0:00:48]} 30. Kg2 {[%clk 0:00:26]}  Kf8 {[%clk 0:00:48]} 31. Kf3 {[%clk 0:00:24]}  Ke7 {[%clk 0:00:48]} 32. Bc6 {[%clk 0:00:20]}  Nd6 {[%clk 0:00:44]} 33. g4 {[%clk 0:00:17]}  g6 {[%clk 0:00:44]} 34. Ke3 {[%clk 0:00:16]}  f5 {[%clk 0:00:42]} 35. f3 {[%clk 0:00:15]}  Ke6 {[%clk 0:00:39]} 36. h5 {[%clk 0:00:12]}  gxh5 {[%clk 0:00:38]} 37. gxh5 {[%clk 0:00:13]}  Bg5+ {[%clk 0:00:36]} 38. Kd3 {[%clk 0:00:11]}  Bd8 {[%clk 0:00:36]} 39. c3 {[%clk 0:00:11]}  Nf7 {[%clk 0:00:28]} 40. Bd5+ {[%clk 0:00:11]}  Kf6 {[%clk 0:00:28]} 41. Bxf7 {[%clk 0:00:09]}  e4+ {[%clk 0:00:27]} 42. fxe4 {[%clk 0:00:09]}  fxe4+ {[%clk 0:00:28]} 43. Kxe4 {[%clk 0:00:09]}  Kxf7 {[%clk 0:00:28]} 44. Kf5 {[%clk 0:00:07]}  Bf6 {[%clk 0:00:24]} 45. Be5 {[%clk 0:00:07]}  Bd8 {[%clk 0:00:23]} 46. a3 {[%clk 0:00:06]}  Bh4 {[%clk 0:00:22]} 47. Bc7 {[%clk 0:00:06]}  Be1 {[%clk 0:00:22]} 48. Bxb6 {[%clk 0:00:06]}  Bxc3 {[%clk 0:00:22]} 49. Bxc5 {[%clk 0:00:06]}  Bb2 {[%clk 0:00:21]} 50. Bd6 {[%clk 0:00:04]}  Bc1 {[%clk 0:00:20]} 51. b4 {[%clk 0:00:04]}  Bxa3 {[%clk 0:00:20]} 52. bxa5 {[%clk 0:00:02]}  Bxd6 {[%clk 0:00:20]} 53. Ke4 {[%clk 0:00:02]}  Ke6 {[%clk 0:00:20]} 54. Kd4 {[%clk 0:00:03]}  Bb8 {[%clk 0:00:18]} 55. c5 {[%clk 0:00:04]}  Ba7 {[%clk 0:00:18]} 56. Kc4 {[%clk 0:00:04]}  h6 {[%clk 0:00:17]} 57. Kb5 {[%clk 0:00:04]}  Kd7 {[%clk 0:00:18]} 58. a6 {[%clk 0:00:03]}  Kc7 {[%clk 0:00:18]} 59. Kc4 {[%clk 0:00:02]}  Kc6 {[%clk 0:00:18]} 60. Kd4 {[%clk 0:00:03]}  Bxc5+ {[%clk 0:00:18]} 61. Ke5 {[%clk 0:00:04]}  Be3 {[%clk 0:00:17]} 62. a7 {[%clk 0:00:05]}  Kb7 {[%clk 0:00:17]} 63. Kf5 {[%clk 0:00:06]}  Bg5 {[%clk 0:00:17]} 64. Kg4 {[%clk 0:00:06]}  Ka8 {[%clk 0:00:18]} 65. Kh3 {[%clk 0:00:07]}  Kxa7 {[%clk 0:00:19]} 66. Kg2 {[%clk 0:00:08]}  Kb6 {[%clk 0:00:19]} 67. Kh1 {[%clk 0:00:08]}  Kc5 {[%clk 0:00:20]} 68. Kg2 {[%clk 0:00:09]}  Kd4 {[%clk 0:00:21]} 69. Kh1 {[%clk 0:00:10]}  Ke3 {[%clk 0:00:22]} 70. Kg2 {[%clk 0:00:11]}  Kf4 {[%clk 0:00:21]} 71. Kh1 {[%clk 0:00:12]}  Kf3 {[%clk 0:00:22]} 72. Kh2 {[%clk 0:00:09]}  Bf4+ {[%clk 0:00:22]} 73. Kh1 {[%clk 0:00:10]}  Kg3 {[%clk 0:00:21]} 74. Kg1 {[%clk 0:00:11]}  Be3+ {[%clk 0:00:21]} 75. Kh1 {[%clk 0:00:12]}  Kh4 {[%clk 0:00:20]} 76. Kh2 {[%clk 0:00:13]}  Bf4+ {[%clk 0:00:21]} 77. Kh1 {[%clk 0:00:14]}  Bg3 {[%clk 0:00:20]} 78. Kg2 {[%clk 0:00:15]}  Kg4 {[%clk 0:00:21]} 79. Kh1 {[%clk 0:00:15]}  Kf3 {[%clk 0:00:20]} 80. Kg1 {[%clk 0:00:16]}  Bf4 {[%clk 0:00:18]} 81. Kh1 {[%clk 0:00:17]}  Kg3 {[%clk 0:00:18]} 82. Kg1 {[%clk 0:00:17]}  Kh3 {[%clk 0:00:17]} 83. Kh1 {[%clk 0:00:18]}  Be3 {[%clk 0:00:16]} 1/2-1/2


[Site "https://www.chess.com"]

[Event "Titled Tuesday Blitz June 14 Late 2022"]
[White "Yurasova, Daria"]
[Black "Gurevich, Dmitry"]
[WhiteFideId "34146919"]
[BlackFideId "2000407"]
[WhiteElo "2021"]
[BlackElo "2506"]
[Result "0-1"]
[Round "11"]
[TimeControl "180+1"]
[Date "2022.06.15"]
[WhiteClock "0:00:09"]
[BlackClock "0:00:51"]

1. e4 {[%clk 0:03:00]}  c5 {[%clk 0:02:59]} 2. Nf3 {[%clk 0:03:00]}  d6 {[%clk 0:02:59]} 3. d4 {[%clk 0:03:00]}  cxd4 {[%clk 0:02:59]} 4. Nxd4 {[%clk 0:03:00]}  Nf6 {[%clk 0:02:59]} 5. Nc3 {[%clk 0:03:01]}  Nc6 {[%clk 0:02:59]} 6. Be3 {[%clk 0:02:59]}  Ng4 {[%clk 0:02:58]} 7. Bg5 {[%clk 0:02:46]}  Qb6 {[%clk 0:02:57]} 8. Bb5 {[%clk 0:02:45]}  Bd7 {[%clk 0:02:53]} 9. Bxc6 {[%clk 0:02:17]}  bxc6 {[%clk 0:02:50]} 10. O-O {[%clk 0:02:18]}  h6 {[%clk 0:02:47]} 11. Bh4 {[%clk 0:02:16]}  g5 {[%clk 0:02:45]} 12. Bg3 {[%clk 0:02:16]}  h5 {[%clk 0:02:24]} 13. h3 {[%clk 0:02:10]}  h4 {[%clk 0:02:17]} 14. Bh2 {[%clk 0:02:01]}  Nxh2 {[%clk 0:02:15]} 15. Kxh2 {[%clk 0:02:02]}  Bg7 {[%clk 0:02:14]} 16. Nf5 {[%clk 0:01:57]}  Be5+ {[%clk 0:02:14]} 17. Kh1 {[%clk 0:01:51]}  Qxb2 {[%clk 0:02:12]} 18. Nd5 {[%clk 0:01:20]}  Qxa1 {[%clk 0:01:36]} 19. Qxa1 {[%clk 0:00:52]}  Bxa1 {[%clk 0:01:34]} 20. Nc7+ {[%clk 0:00:53]}  Kd8 {[%clk 0:01:33]} 21. Nxa8 {[%clk 0:00:45]}  Bxf5 {[%clk 0:01:09]} 22. exf5 {[%clk 0:00:30]}  Bd4 {[%clk 0:01:04]} 23. Rb1 {[%clk 0:00:26]}  Kc8 {[%clk 0:01:04]} 24. f3 {[%clk 0:00:19]}  Rh6 {[%clk 0:01:00]} 25. Rb4 {[%clk 0:00:17]}  Bc5 {[%clk 0:00:57]} 26. Re4 {[%clk 0:00:13]}  d5 {[%clk 0:00:55]} 27. Ra4 {[%clk 0:00:08]}  Kb7 {[%clk 0:00:54]} 28. Ra5 {[%clk 0:00:09]}  Bd6 {[%clk 0:00:51]} 0-1


[Site "https://www.chess.com"]

[Event "Titled Tuesday Blitz June 14 Late 2022"]
[White "Zhou, Liran"]
[Black "Kovanova, Baira"]
[WhiteFideId "30931967"]
[BlackFideId "4164083"]
[WhiteElo "2621"]
[BlackElo "2190"]
[Result "1-0"]
[Round "11"]
[TimeControl "180+1"]
[Date "2022.06.15"]
[WhiteClock "0:00:20"]
[BlackClock "0:00:33"]

1. e4 {[%clk 0:03:00]}  e5 {[%clk 0:02:59]} 2. Nf3 {[%clk 0:02:59]}  Nc6 {[%clk 0:02:59]} 3. Bb5 {[%clk 0:02:57]}  a6 {[%clk 0:02:59]} 4. Ba4 {[%clk 0:02:57]}  Nf6 {[%clk 0:02:57]} 5. d3 {[%clk 0:02:56]}  d6 {[%clk 0:02:53]} 6. c3 {[%clk 0:02:54]}  g6 {[%clk 0:02:53]} 7. O-O {[%clk 0:02:53]}  Bg7 {[%clk 0:02:54]} 8. d4 {[%clk 0:02:52]}  exd4 {[%clk 0:02:54]} 9. cxd4 {[%clk 0:02:53]}  O-O {[%clk 0:02:53]} 10. Nc3 {[%clk 0:02:52]}  b5 {[%clk 0:02:52]} 11. Bc2 {[%clk 0:02:51]}  Bg4 {[%clk 0:02:51]} 12. Be3 {[%clk 0:02:46]}  b4 {[%clk 0:02:49]} 13. Nb1 {[%clk 0:02:26]}  Re8 {[%clk 0:02:47]} 14. Nbd2 {[%clk 0:02:25]}  Nd7 {[%clk 0:02:31]} 15. h3 {[%clk 0:02:14]}  Bxf3 {[%clk 0:02:30]} 16. Nxf3 {[%clk 0:02:15]}  Nb6 {[%clk 0:02:30]} 17. b3 {[%clk 0:02:09]}  d5 {[%clk 0:02:29]} 18. e5 {[%clk 0:02:06]}  Na7 {[%clk 0:02:28]} 19. Qd2 {[%clk 0:01:40]}  Qe7 {[%clk 0:02:28]} 20. Rfe1 {[%clk 0:01:37]}  Nb5 {[%clk 0:02:27]} 21. Bg5 {[%clk 0:01:31]}  Qf8 {[%clk 0:02:26]} 22. Bd3 {[%clk 0:01:28]}  Nc3 {[%clk 0:02:21]} 23. a3 {[%clk 0:01:24]}  a5 {[%clk 0:02:20]} 24. axb4 {[%clk 0:01:19]}  axb4 {[%clk 0:02:21]} 25. Rxa8 {[%clk 0:01:20]}  Rxa8 {[%clk 0:02:21]} 26. e6 {[%clk 0:01:19]}  fxe6 {[%clk 0:02:18]} 27. Rxe6 {[%clk 0:01:19]}  Nd7 {[%clk 0:01:46]} 28. Qe3 {[%clk 0:00:58]}  Nf6 {[%clk 0:01:38]} 29. Bxf6 {[%clk 0:00:46]}  Bxf6 {[%clk 0:01:37]} 30. Rc6 {[%clk 0:00:46]}  Bg7 {[%clk 0:01:16]} 31. Ng5 {[%clk 0:00:36]}  Re8 {[%clk 0:01:06]} 32. Re6 {[%clk 0:00:36]}  Rd8 {[%clk 0:00:55]} 33. Rxg6 {[%clk 0:00:27]}  Rd6 {[%clk 0:00:33]} 34. Rxd6 {[%clk 0:00:21]}  Qxd6 {[%clk 0:00:33]} 35. Qe8+ {[%clk 0:00:20]}  Bf8 {[%clk 0:00:33]} 36. Qf7+ {[%clk 0:00:20]} 1-0


[Site "https://www.chess.com"]